Cogmind - Beta 13 @@@ ROGUE MODE // 2024.04.25 @ 21:44:42 Player: Alphabethead Result: Destroyed by as-74371 with Assembled Heavy Rifle Performance ------------- Evolutions (0) 0 Regions Visited (2) 400 Robots Destroyed (10) 50 Value Destroyed (240) 240 Prototype IDs (0) 0 Alien Tech Used (0) 0 Bonus (0) 0 TOTAL SCORE: 690 Bonus ------- None Cogmind --------- Core Integrity 0/250 Matter 239/300 Energy 95/100 System Corruption 0% Temperature Warm (151) Movement Core (150) Ox2 Location -10/Mines Parts ------- > --- POWER (1) -------- (None) > --- PROPULSION (2) --- (None) > --- UTILITY (2) ------ Small Storage Unit > --- WEAPON (2) ------- Medium Laser > --- INVENTORY (8) ---- Wheel Wheel Improved Heat Sink Sensor Array Improved Terrain Scanner Grenade Launcher Mining Laser Peak State ------------ > --- POWER ------------ Light Nuclear Core > --- PROPULSION ------- Wheel Compact Wheel > --- UTILITY ---------- Small Storage Unit Seismic Detector > --- WEAPON ----------- Small Laser Assault Rifle > --- INVENTORY -------- Ion Engine Light Ion Engine Wheel Sensor Array Improved Terrain Scanner Light Assault Rifle Light Cannon Grenade Launcher [Rating: 10] Favorites ----------- Power Light Ion Engine Engine Light Ion Engine Power Core Light Nuclear Core Propulsion Compact Wheel Wheel Compact Wheel Utility Small Storage Unit Device Seismic Detector Storage Small Storage Unit Weapon Assault Rifle Energy Gun Small Laser Ballistic Gun Assault Rifle Ballistic Cannon Light Cannon Launcher Grenade Launcher Build | -11 -10 -10 ------- Run | Yrd Mat Min Slots Evolved . | . . . Power . | . . . Propulsion . | . . . Utility . | . . . Weapon . | . . . Parts Attached 16 | 7 5 4 Power 4 | 1 3 . Engine 3 | 1 2 . Core 1 | . 1 . Reactor . | . . . Propulsion 4 | 2 1 1 Treads . | . . . Leg . | . . . Wheel 4 | 2 1 1 Hover . | . . . Flight . | . . . Utility 2 | 1 1 . Device 1 | . 1 . Storage 1 | 1 . . Processor . | . . . Hackware . | . . . Protection . | . . . Artifact . | . . . Weapon 6 | 3 . 3 Energy Gun 2 | 1 . 1 Energy Cannon . | . . . Ballistic Gun 2 | 2 . . Ballistic Cannon 1 | . . 1 Launcher 1 | . . 1 Special Weapon . | . . . Impact Weapon . | . . . Slashing Weapon . | . . . Piercing Weapon . | . . . Special Melee Weapon . | . . . Unidentified Prototypes . | . . . Parts Lost 7 | . 2 5 Power 2 | . 1 1 Propulsion 3 | . 1 2 Utility 1 | . . 1 Weapon 1 | . . 1 Highest Loss Streak 5 | . 1 5 To Critical Strikes . | . . . Average Slot Usage (%) 93 | . 93 93 Engine 10 | . 12 . Core 2 | . 1 12 Wheel 27 | . 27 22 Device 9 | . 8 14 Storage 14 | . 14 14 Energy Gun 13 | . 14 8 Ballistic Gun 12 | . 14 6 Naked Turns . | . . . Heaviest Build 17 | 11 14 17 Greatest Support 32 | 32 32 26 Greatest Overweight (x) 2 | 2 . . Average Overweight (x) . | . . . Largest Inventory Capacity 8 | 8 8 8 Average Capacity 7 | 7 8 8 Most Carried 8 | 4 8 8 Average Carried 5 | 1 4 7 Final Capacity 8 | 8 8 8 Final Carried 8 | 2 8 7 Class Distribution -------------------- 94% | Mutant 5% | Scavenger-Mutant Dominant Class ---------------- Mutant | -10/Materials Mutant | -10/Mines Resources | -11 -10 -10 ----------- Run | Yrd Mat Min Matter Collected 457 | 206 199 52 Remotely . | . . . Salvage Created 395 | . 292 103 Parts 24 | . 20 4 Haulers Intercepted . | . . . Recyclers Shooed 1 | . 1 . Parts Field Recycled . | . . . Retrieved Matter . | . . . Parts Self-Destructed . | . . . Prevented . | . . . Kills | -11 -10 -10 ------- Run | Yrd Mat Min Combat Hostiles Destroyed 14 | . 6 8 Guns 8 | . 6 2 Cannons 2 | . . 2 AOE 4 | . . 4 Classes Destroyed 4 | . 3 1 Worker 3 | . 1 2 Tunneler 1 | . 1 . Grunt 6 | . 6 . Assembled 8 | . . 8 Best Kill Streak 8 | . 3 8 Combat Bots Only 8 | . 2 8 Max Kills in Single Turn 4 | . 1 4 Gunslinging . | . . . Exploded 4 | . . 4 Melee . | . . . Uniques/NPCs Destroyed . | . . . Combat | -11 -10 -10 -------- Run | Yrd Mat Min Hostile Shots Fired 80 | . 36 44 Missed 21 | . 9 12 Damage Taken 904 | . 360 544 Core 255 | . 99 156 Absorbed by Shields . | . . . Core Remaining (%) 100 | 100 . . Volleys Fired 48 | . 35 13 Largest 2 | . 2 2 Hottest 85 | . 60 85 Shots Fired 91 | . 69 22 Gun 77 | . 69 8 Cannon 10 | . . 10 Launcher 4 | . . 4 Special . | . . . Kinetic 47 | . 35 12 Thermal 40 | . 34 6 Explosive 4 | . . 4 Electromagnetic . | . . . Robot Hit Streak 7 | . 7 3 Robot Miss Streak 3 | . 3 2 Penetration Max . | . . . Secondary Targets 1 | . 1 . Max Gunslinging Chain 1 | . 1 . Shots Hit Robots 55 | . 47 8 Core Hits 35 | . 19 16 Critical Kills . | . . . Critical Parts Destroyed 1 | . 1 . Critical Strikes 1 | . 1 . Destroy 1 | . 1 . Melee Attacks . | . . . Impact . | . . . Slashing . | . . . Piercing . | . . . Sneak Attacks . | . . . Combat Hostiles . | . . . Follow-up Attacks . | . . . Damage Inflicted 946 | . 597 349 Guns 643 | . 597 46 Cannons 68 | . . 68 Explosions 235 | . . 235 Melee . | . . . Ramming . | . . . Kinetic 424 | . 335 89 Thermal 287 | . 262 25 Explosive 235 | . . 235 Electromagnetic . | . . . Impact . | . . . Slashing . | . . . Piercing . | . . . Highest Corruption . | . . . Average Corruption . | . . . Corruption Purged . | . . . Corruption Blocked . | . . . Overload Shots . | . . . Overflow Damage . | . . . Projectiles . | . . . Explosions . | . . . Melee . | . . . Knockbacks 2 | . . 2 Impact . | . . . Kinetic 1 | . . 1 Secondary 1 | . . 1 Self-Inflicted Damage 26 | . . 26 Shots 1 | . . 1 Rammed . | . . . Targets Rammed . | . . . Kicked . | . . . Crushed . | . . . Highest Temperature 151 | . 133 151 Average Temperature 54 | . 52 61 Received Heat Transfer 342 | . 222 120 Siege Activations . | . . . Robots Corrupted . | . . . Combat Hostiles . | . . . Parts Fried . | . . . Impact Corruptions . | . . . Robots Melted . | . . . Combat Hostiles . | . . . Parts Melted . | . . . Heat Transferred 674 | . 600 74 Parts Sabotaged . | . . . Parts Stolen . | . . . Parts Stripped . | . . . Power Chain Reactions . | . . . Alert | -11 -10 -10 ------- Run | Yrd Mat Min Peak Influence 135 | . 135 66 Initial 52 | . . 52 Average 34 | . 33 60 Maximum Alert Level . | . . . Low Security (%) 100 | 100 100 100 Level 1 . | . . . Level 2 . | . . . Level 3 . | . . . Level 4 . | . . . Level 5 . | . . . High Security . | . . . Max Security . | . . . Squads Dispatched . | . . . Investigation . | . . . Extermination . | . . . Reinforcement . | . . . Assault . | . . . Garrison . | . . . Intercept . | . . . Searches Triggered . | . . . Construction Impeded . | . . . Haulers Reinforced . | . . . Active Scanning Responses . | . . . Cargo Convoy Interrupts . | . . . Stealth | -11 -10 -10 --------- Run | Yrd Mat Min Distress Signals 1 | . 1 . Communications Jammed . | . . . Distress Signals . | . . . Times Spotted 22 | . 10 12 Peak Tracking Total 8 | . 3 8 Tactical Retreats . | . . . Traps | -11 -10 -10 ------- Run | Yrd Mat Min Traps Triggered . | . . . Indirectly . | . . . Trap Hack Attempts . | . . . Triggered . | . . . Disarmed . | . . . Reprogrammed . | . . . Reused . | . . . Traps Extracted . | . . . Installed . | . . . Triggered . | . . . Machines | -11 -10 -10 ---------- Run | Yrd Mat Min Machines Disabled . | . . . Max in Single Turn . | . . . Machines Repaired . | . . . Machines Dismantled . | . . . Machines Sabotaged . | . . . Overloaded Fab Kills . | . . . Hacking | -11 -10 -10 --------- Run | Yrd Mat Min Machines Accessed 2 | . 2 . Terminals 2 | . 2 . Fabricators . | . . . Repair Stations . | . . . Recycling Units . | . . . Scanalyzers . | . . . Garrison Access . | . . . Total Hacks 6 | . 6 . Successful 3 | . 3 . Failed 3 | . 3 . Catastrophic 1 | . 1 . Database Lockouts . | . . . Manual . | . . . Terminals 6 | . 6 . Fabricators . | . . . Repair Stations . | . . . Recycling Units . | . . . Scanalyzers . | . . . Garrison Access . | . . . Terminal Hacks 3 | . 3 . Locate Traps 1 | . 1 . Maintenance Status 1 | . 1 . Transport Status 1 | . 1 . Fabricator Hacks . | . . . Repair Station Hacks . | . . . Recycling Unit Hacks . | . . . Scanalyzer . | . . . Garrison Access Hacks . | . . . Unauthorized Hacks . | . . . Terminals . | . . . Fabricators . | . . . Repair Stations . | . . . Recycling Units . | . . . Scanalyzers . | . . . Garrison Access . | . . . Data Cores Recovered . | . . . Used . | . . . Hacking Detections 2 | . 2 . Full Trace Events . | . . . Feedback Events . | . . . Feedback Blocked . | . . . Robot Schematics Acquired . | . . . Robots Built . | . . . Authchips . | . . . Time . | . . . Total Robot Build Rating . | . . . Part Schematics Acquired . | . . . Parts Built . | . . . Authchips . | . . . Time . | . . . Total Part Build Rating . | . . . Parts Repaired . | . . . Time . | . . . Parts Recycled . | . . . Recycled Matter . | . . . Retrieved Matter . | . . . Retrieved Components . | . . . Parts Scanalyzed . | . . . Part Schematics Acquired . | . . . Parts Damaged . | . . . Bothacking | -11 -10 -10 ------------ Run | Yrd Mat Min Used RIF Installer . | . . . Robots Hacked . | . . . Non-combat . | . . . Combat . | . . . Robot Hacks Applied . | . . . Relay Couplers Released . | . . . Fabnet Peak Effective % . | . . . Robots Rewired . | . . . Allies Hacked . | . . . Hacks Repelled . | . . . Allies | -11 -10 -10 -------- Run | Yrd Mat Min Total Allies . | . . . Largest Group . | . . . Highest-Rated Group . | . . . Highest-Rated Ally . | . . . Total Orders . | . . . Ally Attacks . | . . . Total Damage . | . . . Kills . | . . . Allies Corrupted . | . . . Allies Melted . | . . . Intel | -11 -10 -10 ------- Run | Yrd Mat Min Robot Analysis Total . | . . . Derelict Logs Recovered . | . . . Drone Launches . | . . . Drone Recoveries . | . . . Exploration | -11 -10 -10 ------------- Run | Yrd Mat Min Turns Passed 865 | 55 696 114 Spaces Moved 493 | 42 366 85 Core 3 | 3 . . Treads . | . . . Legs . | . . . Wheels 490 | 39 366 85 Hover . | . . . Flight . | . . . Fastest Speed 50 | 50 90 80 Average Speed 93 | 98 95 81 Slowest Speed 150 | 150 100 90 Overloaded Moves . | . . . Propulsion Burnouts . | . . . Robots Hopped . | . . . Cave-ins Triggered . | . . . Exploration Rate (%) 24 | 4 46 24 Regions Visited 2 Branch Regions 1 Pre-discovered Areas . | . . . Known Exits Taken . | . . . Unknown Exits Taken 2 | 1 1 . Scrap Searched 1 | . . 1 Spaces Dug . | . . . Terrain Destroyed 25 | . . 25 Melee . | . . . Projectile 1 | . . 1 AOE 24 | . . 24 Terrain Rammed . | . . . Walls Destroyed . | . . . Machines Disabled . | . . . Actions | -11 -10 -10 --------- Run | Yrd Mat Min Total 806 | 52 643 111 Wait 226 | . 225 1 Move 491 | 41 365 85 Hop . | . . . Pick Up 18 | 4 11 3 Fast Attach 5 | 4 . 1 Attach 5 | 2 3 . Detach . | . . . Swap 6 | 1 2 3 Drop 7 | . 2 5 Fire 48 | . 35 13 Melee . | . . . Ram . | . . . Kick . | . . . Crush . | . . . Escape Stasis . | . . . Rewire . | . . . Trap . | . . . Miscellaneous . | . . . Route ------- -11/Scrapyard -10/Materials -10/Mines History --------- Turn | Location | Event 9 | -11/Scrapyard | Discovered new exit (range 15) 56 | -11/Scrapyard | Entered Materials 322 | -10/Materials | Build established: Mutant 675 | -10/Materials | Discovered new exit (range 14) 752 | -10/Materials | Entered Mines 784 | -10/Mines | YI-UF0 nonchalantly dropped a Grenade Launcher on the ground 797 | -10/Mines | Assembled infested the area 846 | -10/Mines | Core integrity fell below 50% 858 | -10/Mines | Core integrity fell below 20% 866 | -10/Mines | Destroyed by as-74371 with Assembled Heavy Rifle Last Messages --------------- 00834_ Acquired 4 matter. 00844_ Knocked back. 00844_ Wheel destroyed. 00845_ as-42189 destroyed. 00845_ as-69034 destroyed. 00845_ as-17869 destroyed. 00845_ as-44968 destroyed. 00847_ Wheel destroyed. 00852_ K-01 Serf collects debris. 00854_ Lgt. Nuclear Core destroyed. 00856_ as-89596 destroyed. 00857_ K-01 Serf destroyed. 00859_ The unstable cave ceiling collapses. 00862_ Seismic Detector destroyed. 00862_ as-52862 knocked back. 00862_ as-22520 destroyed. 00862_ as-52862 destroyed. 00864_ The unstable cave ceiling collapses. 00864_ Lgt. Cannon destroyed. 00865_ as-34720 destroyed. Map ----- +----------------------------------------------------+ | | | | | | | | | | | | | | | | | | | | | | | | | | | | | | | | | | | | | | | | | | | ?????????????????????????????????????????????????? | | ????????????????????????????????????#????????????? | | ###?????????????????????###??### ########?????? | | #????????????????????## #% ???? | | #????????????????????# @ %%% <[ #??????????? | | #????????????????????## % # #??????????? | | #??????????????????###%%% #### #??????????? | | #?????????????????## %a ##??# ###??????????? | | ######??????????### #??? #????????????? | | % ## ##???????## #??? #???????????? | | # ?????## #### #???????????? | | ###?# a ### #???????????? | | # # ### ### ##???????????? | | # ### #### #????????????? | | ? % #?### #????????????? | | ? #???## #### #????????????? | | ?# ######! #??? #????????????? | | ?# ???## %= ????????????? | | # ??????# #######= = ????????????? | | # ???????###?????# * ###????????????? | | # ??????????????? ### #??????????????? | | #? ??????????????? ##??#### ##??????????????? | | ?? ??????????????? #???????###???????????????? | | ?## ?????????????? #?????????????????????????? | | ???###?????????????? #?????????????????????????? | | ???????????????????? #?????????????????????????? | | ???????????????????# #?????????????????????????? | | ??????????????????? ?????????????????????????? | | ??????????????????? ?????????????????????????? | +----------------------------------------------------+ Best States ------------- Heat Dissipation 25 Energy Generation 14 Energy Capacity 250 Matter Stores 300 Matter Capacity 300 Sight Range 16 Terrain Scan Density 10 Evasion (%) 44 Item Schematics ----------------- None Robot Schematics ------------------ None Fabricated ------------ Nothing Alien Tech Used ----------------- None Achievements -------------- None Challenges ------------ None Game ------ Seed SmartbombCannonSink Manual? 0 Play Time 00:11:39 Cumulative 14.3 hours Start 2024.04.25 @ 21:35:32 End 2024.04.25 @ 21:44:42 Sessions 1 Manual Loads 0 Difficulty Rogue Special Mode None Game No. 21 Rogue 21 Adventurer 0 Explorer 0 Win Type - Total 0 Types 0/0/0/0/0/0/0/0/0 Lore% 18 Gallery% 19 Achievement% 17 Wizard Run 0 Options --------- Layout 1 ASCII 0 Keyboard 1 Movement Arrows Keybinds 0 Fullscreen 1 Font 24/Smallcaps Map View 50x35 Zoom Use 0% Tactical HUD 1 Map Filters NONE Filters NONE Steam 1 RUN: f50663b7-ddf5-4446-bef8-71e77ce42825